[Event "Titled Tuesday Blitz March 22 Early 2022"]
[White "Vovk, Orest"]
[Black "Dinu, Dumitru-Daniel"]
[WhiteFideId "14113490"]
[BlackFideId "1208403"]
[WhiteElo "2203"]
[BlackElo "2240"]
[Result "1-0"]
[Round "07"]
[TimeControl "180+1"]
[Date "2022.03.22"]
[WhiteClock "0:01:37"]
[BlackClock "0:00:15"]

1. h4 {[%clk 0:03:00]}  c5 {[%clk 0:02:57]} 2. h5 {[%clk 0:03:01]}  Nc6 {[%clk 0:02:56]} 3. d3 {[%clk 0:02:47]}  d5 {[%clk 0:02:55]} 4. Nc3 {[%clk 0:02:37]}  Nf6 {[%clk 0:02:51]} 5. e4 {[%clk 0:02:30]}  dxe4 {[%clk 0:02:50]} 6. Nxe4 {[%clk 0:02:27]}  Nxe4 {[%clk 0:02:49]} 7. dxe4 {[%clk 0:02:28]}  Qxd1+ {[%clk 0:02:49]} 8. Kxd1 {[%clk 0:02:28]}  Bg4+ {[%clk 0:02:41]} 9. Be2 {[%clk 0:02:28]}  O-O-O+ {[%clk 0:02:40]} 10. Bd2 {[%clk 0:02:26]}  Bxe2+ {[%clk 0:02:38]} 11. Nxe2 {[%clk 0:02:26]}  e6 {[%clk 0:02:27]} 12. c3 {[%clk 0:02:24]}  Be7 {[%clk 0:02:25]} 13. Kc2 {[%clk 0:02:24]}  Ne5 {[%clk 0:02:22]} 14. f3 {[%clk 0:02:21]}  Nc4 {[%clk 0:02:18]} 15. Bf4 {[%clk 0:02:21]}  e5 {[%clk 0:02:15]} 16. Bc1 {[%clk 0:02:20]}  h6 {[%clk 0:01:59]} 17. b3 {[%clk 0:02:19]}  Nb6 {[%clk 0:01:57]} 18. Be3 {[%clk 0:02:20]}  Rd7 {[%clk 0:01:54]} 19. Rhd1 {[%clk 0:02:20]}  Rhd8 {[%clk 0:01:54]} 20. Rxd7 {[%clk 0:02:19]}  Rxd7 {[%clk 0:01:53]} 21. c4 {[%clk 0:02:18]}  Na8 {[%clk 0:01:41]} 22. Nc3 {[%clk 0:02:15]}  Nc7 {[%clk 0:01:36]} 23. Nd5 {[%clk 0:02:15]}  Nxd5 {[%clk 0:01:32]} 24. exd5 {[%clk 0:02:13]}  Bd6 {[%clk 0:01:31]} 25. Kd3 {[%clk 0:02:12]}  f5 {[%clk 0:01:28]} 26. g4 {[%clk 0:02:12]}  fxg4 {[%clk 0:01:22]} 27. fxg4 {[%clk 0:02:12]}  Rf7 {[%clk 0:01:22]} 28. Ke2 {[%clk 0:02:12]}  Kd7 {[%clk 0:01:11]} 29. Rf1 {[%clk 0:02:11]}  Ke7 {[%clk 0:01:07]} 30. Rxf7+ {[%clk 0:02:11]}  Kxf7 {[%clk 0:01:06]} 31. Kf3 {[%clk 0:02:11]}  Kf6 {[%clk 0:01:04]} 32. Ke4 {[%clk 0:02:12]}  b6 {[%clk 0:00:59]} 33. a3 {[%clk 0:02:06]}  Bc7 {[%clk 0:00:29]} 34. b4 {[%clk 0:01:59]}  Bd6 {[%clk 0:00:28]} 35. bxc5 {[%clk 0:01:58]}  bxc5 {[%clk 0:00:28]} 36. a4 {[%clk 0:01:57]}  a6 {[%clk 0:00:26]} 37. Kf3 {[%clk 0:01:55]}  Kf7 {[%clk 0:00:21]} 38. g5 {[%clk 0:01:51]}  hxg5 {[%clk 0:00:18]} 39. Bxg5 {[%clk 0:01:52]}  g6 {[%clk 0:00:16]} 40. h6 {[%clk 0:01:51]}  Kg8 {[%clk 0:00:16]} 41. Ke4 {[%clk 0:01:50]}  Kh7 {[%clk 0:00:16]} 42. Be3 {[%clk 0:01:41]}  Kg8 {[%clk 0:00:16]} 43. Bc1 {[%clk 0:01:39]}  Kh7 {[%clk 0:00:16]} 44. Bg5 {[%clk 0:01:39]}  Bc7 {[%clk 0:00:12]} 45. Be7 {[%clk 0:01:38]}  Kxh6 {[%clk 0:00:11]} 46. d6 {[%clk 0:01:39]}  Bb6 {[%clk 0:00:10]} 47. d7 {[%clk 0:01:38]}  g5 {[%clk 0:00:10]} 48. d8=Q {[%clk 0:01:37]}  Bxd8 {[%clk 0:00:11]} 49. Bxd8 {[%clk 0:01:37]}  g4 {[%clk 0:00:12]} 50. Bh4 {[%clk 0:01:37]}  Kh5 {[%clk 0:00:12]} 51. Bg3 {[%clk 0:01:37]}  Kg5 {[%clk 0:00:12]} 52. Kxe5 {[%clk 0:01:37]}  Kg6 {[%clk 0:00:13]} 53. Kd5 {[%clk 0:01:37]}  Kf6 {[%clk 0:00:13]} 54. Kxc5 {[%clk 0:01:38]}  Kf5 {[%clk 0:00:14]} 55. Kb6 {[%clk 0:01:38]}  Ke4 {[%clk 0:00:14]} 56. Kxa6 {[%clk 0:01:38]}  Kd4 {[%clk 0:00:15]} 57. Kb5 {[%clk 0:01:37]} 1-0


[Site "https://www.chess.com"]

[Event "Titled Tuesday Blitz March 22 Early 2022"]
[White "Williams, Simon K"]
[Black "Fernandez, Daniel Howard"]
[WhiteFideId "404454"]
[BlackFideId "5801605"]
[WhiteElo "2468"]
[BlackElo "2466"]
[Result "0-1"]
[Round "07"]
[TimeControl "180+1"]
[Date "2022.03.22"]
[WhiteClock "0:00:17"]
[BlackClock "0:00:19"]

1. d4 {[%clk 0:02:59]}  Nf6 {[%clk 0:02:56]} 2. c4 {[%clk 0:02:58]}  e6 {[%clk 0:02:56]} 3. Nf3 {[%clk 0:02:58]}  Bb4+ {[%clk 0:02:56]} 4. Nbd2 {[%clk 0:02:57]}  O-O {[%clk 0:02:52]} 5. a3 {[%clk 0:02:57]}  Be7 {[%clk 0:02:51]} 6. g4 {[%clk 0:02:54]}  d5 {[%clk 0:02:43]} 7. Qc2 {[%clk 0:02:47]}  dxc4 {[%clk 0:02:42]} 8. g5 {[%clk 0:02:45]}  Nh5 {[%clk 0:02:36]} 9. Nxc4 {[%clk 0:02:42]}  Nc6 {[%clk 0:02:36]} 10. Qe4 {[%clk 0:02:21]}  Qd5 {[%clk 0:02:29]} 11. Qxd5 {[%clk 0:02:12]}  exd5 {[%clk 0:02:30]} 12. Nce5 {[%clk 0:01:53]}  Nxe5 {[%clk 0:02:26]} 13. Nxe5 {[%clk 0:01:47]}  c6 {[%clk 0:02:27]} 14. Bg2 {[%clk 0:01:41]}  f6 {[%clk 0:02:26]} 15. gxf6 {[%clk 0:01:41]}  Nxf6 {[%clk 0:02:27]} 16. Bf4 {[%clk 0:01:37]}  Bf5 {[%clk 0:02:27]} 17. e3 {[%clk 0:01:36]}  Be4 {[%clk 0:02:16]} 18. f3 {[%clk 0:01:32]}  Bf5 {[%clk 0:02:16]} 19. Bg3 {[%clk 0:01:32]}  Rae8 {[%clk 0:02:10]} 20. O-O {[%clk 0:01:31]}  Nh5 {[%clk 0:01:57]} 21. Bf2 {[%clk 0:01:22]}  Bd6 {[%clk 0:01:57]} 22. f4 {[%clk 0:01:20]}  Nf6 {[%clk 0:01:56]} 23. b4 {[%clk 0:01:15]}  Ne4 {[%clk 0:01:53]} 24. Bh4 {[%clk 0:00:44]}  Re6 {[%clk 0:01:51]} 25. Kh1 {[%clk 0:00:42]}  Rh6 {[%clk 0:01:45]} 26. Be1 {[%clk 0:00:42]}  g5 {[%clk 0:01:40]} 27. fxg5 {[%clk 0:00:37]}  Nxg5 {[%clk 0:01:40]} 28. Bg3 {[%clk 0:00:36]}  Ne4 {[%clk 0:01:31]} 29. Bf4 {[%clk 0:00:36]}  Rh4 {[%clk 0:01:28]} 30. Ra2 {[%clk 0:00:36]}  Bxe5 {[%clk 0:01:15]} 31. Bxe5 {[%clk 0:00:34]}  Bh3 {[%clk 0:01:15]} 32. Rxf8+ {[%clk 0:00:31]}  Kxf8 {[%clk 0:01:16]} 33. Ra1 {[%clk 0:00:26]}  Bxg2+ {[%clk 0:01:07]} 34. Kxg2 {[%clk 0:00:26]}  Rg4+ {[%clk 0:01:08]} 35. Kf3 {[%clk 0:00:26]}  h5 {[%clk 0:01:09]} 36. h3 {[%clk 0:00:24]}  Ng5+ {[%clk 0:01:09]} 37. Kf2 {[%clk 0:00:23]}  Nxh3+ {[%clk 0:01:10]} 38. Ke2 {[%clk 0:00:23]}  Ng5 {[%clk 0:01:01]} 39. Rf1+ {[%clk 0:00:22]}  Ke7 {[%clk 0:00:46]} 40. Rf6 {[%clk 0:00:22]}  Rg2+ {[%clk 0:00:38]} 41. Kf1 {[%clk 0:00:22]}  Ra2 {[%clk 0:00:38]} 42. Rg6 {[%clk 0:00:22]}  Nf3 {[%clk 0:00:30]} 43. Rg7+ {[%clk 0:00:22]}  Ke6 {[%clk 0:00:31]} 44. Bf4 {[%clk 0:00:22]}  Nd2+ {[%clk 0:00:26]} 45. Kg2 {[%clk 0:00:20]}  Ne4+ {[%clk 0:00:20]} 46. Kh3 {[%clk 0:00:20]}  Rxa3 {[%clk 0:00:20]} 47. Rxb7 {[%clk 0:00:20]}  a5 {[%clk 0:00:20]} 48. b5 {[%clk 0:00:19]}  cxb5 {[%clk 0:00:20]} 49. Rxb5 {[%clk 0:00:19]}  a4 {[%clk 0:00:20]} 50. Kh4 {[%clk 0:00:20]}  Rb3 {[%clk 0:00:20]} 51. Ra5 {[%clk 0:00:18]}  a3 {[%clk 0:00:20]} 52. Kxh5 {[%clk 0:00:19]}  Nc3 {[%clk 0:00:20]} 53. Kg6 {[%clk 0:00:18]}  a2 {[%clk 0:00:20]} 54. Ra6+ {[%clk 0:00:18]}  Kd7 {[%clk 0:00:21]} 55. Kf6 {[%clk 0:00:18]}  Rb1 {[%clk 0:00:20]} 56. Ra7+ {[%clk 0:00:17]}  Kc6 {[%clk 0:00:19]} 0-1


[Site "https://www.chess.com"]

[Event "Titled Tuesday Blitz March 22 Early 2022"]
[White "Yeletsky, Ivan"]
[Black "Sanal, Vahap"]
[WhiteFideId "24180327"]
[BlackFideId "6300545"]
[WhiteElo "2303"]
[BlackElo "2603"]
[Result "1-0"]
[Round "07"]
[TimeControl "180+1"]
[Date "2022.03.22"]
[WhiteClock "0:00:05"]
[BlackClock "0:00:13"]

1. c4 {[%clk 0:03:00]}  Nf6 {[%clk 0:02:59]} 2. Nc3 {[%clk 0:02:59]}  g6 {[%clk 0:02:59]} 3. e4 {[%clk 0:02:59]}  d6 {[%clk 0:03:00]} 4. d4 {[%clk 0:02:58]}  Bg7 {[%clk 0:03:01]} 5. Nf3 {[%clk 0:02:58]}  O-O {[%clk 0:03:01]} 6. Be2 {[%clk 0:02:56]}  e5 {[%clk 0:03:01]} 7. d5 {[%clk 0:02:56]}  a5 {[%clk 0:03:00]} 8. Be3 {[%clk 0:02:56]}  Na6 {[%clk 0:03:00]} 9. Nd2 {[%clk 0:02:56]}  Ne8 {[%clk 0:02:58]} 10. g4 {[%clk 0:02:55]}  f5 {[%clk 0:02:55]} 11. gxf5 {[%clk 0:02:55]}  gxf5 {[%clk 0:02:56]} 12. exf5 {[%clk 0:02:54]}  Bxf5 {[%clk 0:02:56]} 13. Rg1 {[%clk 0:02:53]}  Kh8 {[%clk 0:02:56]} 14. Bg4 {[%clk 0:02:46]}  Bg6 {[%clk 0:02:55]} 15. Bh5 {[%clk 0:02:45]}  Bf5 {[%clk 0:02:51]} 16. Nde4 {[%clk 0:02:44]}  Qh4 {[%clk 0:02:47]} 17. Bg4 {[%clk 0:02:16]}  Qxh2 {[%clk 0:02:43]} 18. Kd2 {[%clk 0:02:15]}  Bh6 {[%clk 0:02:30]} 19. Bxf5 {[%clk 0:01:44]}  Rxf5 {[%clk 0:02:18]} 20. Qg4 {[%clk 0:01:38]}  Bxe3+ {[%clk 0:02:06]} 21. Kd1 {[%clk 0:01:19]}  Rf8 {[%clk 0:01:46]} 22. Nf6 {[%clk 0:01:18]}  Qxg1+ {[%clk 0:01:33]} 23. Qxg1 {[%clk 0:01:19]}  Bd4 {[%clk 0:01:19]} 24. Nfe4 {[%clk 0:00:49]}  Nf6 {[%clk 0:01:14]} 25. Ng5 {[%clk 0:00:25]}  Nc5 {[%clk 0:01:08]} 26. Ne2 {[%clk 0:00:16]}  Bxb2 {[%clk 0:00:47]} 27. Rb1 {[%clk 0:00:16]}  Nd3 {[%clk 0:00:48]} 28. Kc2 {[%clk 0:00:12]}  e4 {[%clk 0:00:02]} 29. Rxb2 {[%clk 0:00:12]}  Nxb2 {[%clk 0:00:03]} 30. Kxb2 {[%clk 0:00:13]}  Rae8 {[%clk 0:00:03]} 31. Ne6 {[%clk 0:00:10]}  Rf7 {[%clk 0:00:03]} 32. N2d4 {[%clk 0:00:10]}  Rg8 {[%clk 0:00:04]} 33. Qh2 {[%clk 0:00:09]}  Nd7 {[%clk 0:00:05]} 34. Ka3 {[%clk 0:00:07]}  Ne5 {[%clk 0:00:05]} 35. Qh5 {[%clk 0:00:06]}  Nxc4+ {[%clk 0:00:05]} 36. Kb3 {[%clk 0:00:06]}  Ne5 {[%clk 0:00:06]} 37. Ng5 {[%clk 0:00:05]}  Rfg7 {[%clk 0:00:04]} 38. Nde6 {[%clk 0:00:05]}  Re7 {[%clk 0:00:04]} 39. a4 {[%clk 0:00:04]}  c6 {[%clk 0:00:05]} 40. Qh6 {[%clk 0:00:03]}  Ng4 {[%clk 0:00:02]} 41. Qh4 {[%clk 0:00:03]}  Ne5 {[%clk 0:00:03]} 42. Qf4 {[%clk 0:00:03]}  Nd7 {[%clk 0:00:02]} 43. Qe3 {[%clk 0:00:03]}  Nf6 {[%clk 0:00:01]} 44. Qd4 {[%clk 0:00:03]}  Rg6 {[%clk 0:00:02]} 45. Qc3 {[%clk 0:00:03]}  cxd5 {[%clk 0:00:02]} 46. Qc8+ {[%clk 0:00:03]}  Re8 {[%clk 0:00:03]} 47. Qc3 {[%clk 0:00:04]}  h6 {[%clk 0:00:04]} 48. Nf7+ {[%clk 0:00:03]}  Kh7 {[%clk 0:00:04]} 49. Nf4 {[%clk 0:00:04]}  Re7 {[%clk 0:00:02]} 50. Nxg6 {[%clk 0:00:04]}  Kxg6 {[%clk 0:00:03]} 51. Nxd6 {[%clk 0:00:05]}  Re6 {[%clk 0:00:04]} 52. Qg3+ {[%clk 0:00:04]}  Kh7 {[%clk 0:00:05]} 53. Nf5 {[%clk 0:00:05]}  Rb6+ {[%clk 0:00:04]} 54. Kc2 {[%clk 0:00:05]}  Rc6+ {[%clk 0:00:03]} 55. Kd1 {[%clk 0:00:05]}  Nh5 {[%clk 0:00:04]} 56. Qe5 {[%clk 0:00:05]}  Rg6 {[%clk 0:00:04]} 57. Qe7+ {[%clk 0:00:05]}  Ng7 {[%clk 0:00:04]} 58. Nxg7 {[%clk 0:00:04]}  Rxg7 {[%clk 0:00:05]} 59. Qd6 {[%clk 0:00:05]}  Rg5 {[%clk 0:00:06]} 60. Qc7+ {[%clk 0:00:05]}  Kg6 {[%clk 0:00:07]} 61. Qxb7 {[%clk 0:00:05]}  h5 {[%clk 0:00:07]} 62. Qb6+ {[%clk 0:00:04]}  Kf5 {[%clk 0:00:08]} 63. Qxa5 {[%clk 0:00:05]}  Kg4 {[%clk 0:00:08]} 64. Ke2 {[%clk 0:00:05]}  h4 {[%clk 0:00:08]} 65. Qd8 {[%clk 0:00:06]}  h3 {[%clk 0:00:08]} 66. Qd6 {[%clk 0:00:06]}  Kh4 {[%clk 0:00:09]} 67. Qf4+ {[%clk 0:00:06]}  Kh5 {[%clk 0:00:10]} 68. a5 {[%clk 0:00:04]}  d4 {[%clk 0:00:09]} 69. Qxe4 {[%clk 0:00:03]}  h2 {[%clk 0:00:10]} 70. Qh1 {[%clk 0:00:03]}  Re5+ {[%clk 0:00:10]} 71. Kd2 {[%clk 0:00:03]}  Kg4 {[%clk 0:00:09]} 72. Qxh2 {[%clk 0:00:03]}  Rxa5 {[%clk 0:00:10]} 73. Qg3+ {[%clk 0:00:03]}  Kf5 {[%clk 0:00:10]} 74. Qf3+ {[%clk 0:00:04]}  Ke5 {[%clk 0:00:11]} 75. Qh5+ {[%clk 0:00:04]}  Ke4 {[%clk 0:00:12]} 76. Qxa5 {[%clk 0:00:05]}  d3 {[%clk 0:00:12]} 77. Qb4+ {[%clk 0:00:04]}  Kf3 {[%clk 0:00:13]} 78. Kxd3 {[%clk 0:00:05]} 1-0


[Site "https://www.chess.com"]

[Event "Titled Tuesday Blitz March 22 Early 2022"]
[White "Zhigalko, Sergei"]
[Black "Sarana, Alexey"]
[WhiteFideId "13502956"]
[BlackFideId "24133795"]
[WhiteElo "2662"]
[BlackElo "2666"]
[Result "0-1"]
[Round "07"]
[TimeControl "180+1"]
[Date "2022.03.22"]
[WhiteClock "0:00:01"]
[BlackClock "0:00:20"]

1. e4 {[%clk 0:03:00]}  c5 {[%clk 0:02:59]} 2. c3 {[%clk 0:02:59]}  d5 {[%clk 0:02:57]} 3. exd5 {[%clk 0:02:59]}  Qxd5 {[%clk 0:02:58]} 4. d4 {[%clk 0:03:00]}  Nf6 {[%clk 0:02:59]} 5. Nf3 {[%clk 0:03:00]}  Nc6 {[%clk 0:02:53]} 6. dxc5 {[%clk 0:02:59]}  Qxc5 {[%clk 0:02:47]} 7. Na3 {[%clk 0:02:59]}  e5 {[%clk 0:02:38]} 8. Nb5 {[%clk 0:02:40]}  Qe7 {[%clk 0:02:36]} 9. Bg5 {[%clk 0:02:34]}  a6 {[%clk 0:02:33]} 10. Na3 {[%clk 0:02:31]}  h6 {[%clk 0:02:32]} 11. Be3 {[%clk 0:02:28]}  Be6 {[%clk 0:02:19]} 12. Nc4 {[%clk 0:02:23]}  Rd8 {[%clk 0:02:07]} 13. Qc2 {[%clk 0:02:19]}  Nd5 {[%clk 0:02:06]} 14. Be2 {[%clk 0:01:55]}  Nxe3 {[%clk 0:02:06]} 15. Nxe3 {[%clk 0:01:54]}  g6 {[%clk 0:01:58]} 16. Bc4 {[%clk 0:01:49]}  Bg7 {[%clk 0:01:58]} 17. Bxe6 {[%clk 0:01:47]}  Qxe6 {[%clk 0:01:58]} 18. Qb3 {[%clk 0:01:48]}  Qxb3 {[%clk 0:01:54]} 19. axb3 {[%clk 0:01:48]}  f5 {[%clk 0:01:54]} 20. Ke2 {[%clk 0:01:41]}  Ke7 {[%clk 0:01:50]} 21. Rhd1 {[%clk 0:01:40]}  Ke6 {[%clk 0:01:50]} 22. Nh4 {[%clk 0:01:22]}  Ne7 {[%clk 0:01:47]} 23. g4 {[%clk 0:01:11]}  f4 {[%clk 0:01:47]} 24. Nc4 {[%clk 0:01:06]}  g5 {[%clk 0:01:44]} 25. Nf3 {[%clk 0:01:00]}  Nd5 {[%clk 0:01:02]} 26. Ra5 {[%clk 0:00:40]}  e4 {[%clk 0:01:00]} 27. Nd4+ {[%clk 0:00:40]}  Kf7 {[%clk 0:00:35]} 28. Nf5 {[%clk 0:00:32]}  f3+ {[%clk 0:00:34]} 29. Kf1 {[%clk 0:00:15]}  Nf4 {[%clk 0:00:34]} 30. Ncd6+ {[%clk 0:00:08]}  Kg6 {[%clk 0:00:34]} 31. Re1 {[%clk 0:00:07]}  h5 {[%clk 0:00:31]} 32. Ne7+ {[%clk 0:00:05]}  Kf6 {[%clk 0:00:29]} 33. Nxb7 {[%clk 0:00:02]}  Rd2 {[%clk 0:00:21]} 34. Nd5+ {[%clk 0:00:01]}  Nxd5 {[%clk 0:00:20]} 0-1


[Site "https://www.chess.com"]

[Event "Titled Tuesday Blitz March 22 Early 2022"]
[White "Alinasab, Mobina"]
[Black "Hnydiuk, Aleksander"]
[WhiteFideId "12528897"]
[BlackFideId "1109057"]
[WhiteElo "2052"]
[BlackElo "2374"]
[Result "1-0"]
[Round "08"]
[TimeControl "180+1"]
[Date "2022.03.22"]
[WhiteClock "0:01:29"]
[BlackClock "0:00:53"]

1. e4 {[%clk 0:03:00]}  Nc6 {[%clk 0:02:50]} 2. Nf3 {[%clk 0:03:00]}  g6 {[%clk 0:02:50]} 3. d4 {[%clk 0:02:58]}  Bg7 {[%clk 0:02:48]} 4. d5 {[%clk 0:02:58]}  Nb4 {[%clk 0:02:43]} 5. a3 {[%clk 0:02:52]}  Na6 {[%clk 0:02:43]} 6. Nc3 {[%clk 0:02:46]}  f5 {[%clk 0:02:39]} 7. exf5 {[%clk 0:02:46]}  gxf5 {[%clk 0:02:40]} 8. Nh4 {[%clk 0:02:38]}  e6 {[%clk 0:02:37]} 9. Qh5+ {[%clk 0:02:36]}  Kf8 {[%clk 0:02:37]} 10. Bf4 {[%clk 0:02:14]}  Nc5 {[%clk 0:02:30]} 11. d6 {[%clk 0:02:08]}  Bxc3+ {[%clk 0:02:21]} 12. bxc3 {[%clk 0:02:06]}  Qf6 {[%clk 0:02:22]} 13. O-O-O {[%clk 0:01:47]}  e5 {[%clk 0:02:13]} 14. Bg5 {[%clk 0:01:34]}  Qe6 {[%clk 0:02:09]} 15. Nxf5 {[%clk 0:01:30]}  Ne4 {[%clk 0:00:56]} 16. Be7+ {[%clk 0:01:28]}  Nxe7 {[%clk 0:00:53]} 17. dxe7+ {[%clk 0:01:29]} 1-0


[Site "https://www.chess.com"]

[Event "Titled Tuesday Blitz March 22 Early 2022"]
[White "Al-Tarboush, Ward"]
[Black "Danilenko, Dmitriy"]
[WhiteFideId "7601450"]
[BlackFideId "14120844"]
[WhiteElo "2276"]
[BlackElo "2606"]
[Result "0-1"]
[Round "08"]
[TimeControl "180+1"]
[Date "2022.03.22"]
[WhiteClock "0:00:01"]
[BlackClock "0:00:37"]

1. d4 {[%clk 0:02:59]}  f5 {[%clk 0:03:00]} 2. Nf3 {[%clk 0:02:59]}  Nf6 {[%clk 0:03:01]} 3. g3 {[%clk 0:02:59]}  g6 {[%clk 0:03:01]} 4. Bg2 {[%clk 0:02:59]}  Bg7 {[%clk 0:03:02]} 5. O-O {[%clk 0:03:00]}  O-O {[%clk 0:03:02]} 6. c4 {[%clk 0:02:59]}  d6 {[%clk 0:03:03]} 7. Nbd2 {[%clk 0:02:59]}  Qe8 {[%clk 0:03:04]} 8. d5 {[%clk 0:02:56]}  a5 {[%clk 0:03:04]} 9. Nb3 {[%clk 0:02:52]}  a4 {[%clk 0:03:00]} 10. Nbd4 {[%clk 0:02:52]}  Na6 {[%clk 0:03:01]} 11. b3 {[%clk 0:02:50]}  Nc5 {[%clk 0:02:59]} 12. Bb2 {[%clk 0:02:48]}  Bd7 {[%clk 0:02:59]} 13. b4 {[%clk 0:02:47]}  Nce4 {[%clk 0:02:59]} 14. a3 {[%clk 0:02:45]}  c6 {[%clk 0:02:59]} 15. Ne6 {[%clk 0:02:38]}  Bxe6 {[%clk 0:02:58]} 16. dxe6 {[%clk 0:02:39]}  Qc8 {[%clk 0:02:59]} 17. Nd4 {[%clk 0:02:34]}  Ng5 {[%clk 0:02:53]} 18. b5 {[%clk 0:02:29]}  c5 {[%clk 0:02:48]} 19. h4 {[%clk 0:02:29]}  Nge4 {[%clk 0:02:41]} 20. Nf3 {[%clk 0:02:28]}  Qxe6 {[%clk 0:02:41]} 21. Ng5 {[%clk 0:02:27]}  Nxg5 {[%clk 0:02:40]} 22. Bxf6 {[%clk 0:02:25]}  Nh3+ {[%clk 0:02:13]} 23. Bxh3 {[%clk 0:02:16]}  Qxf6 {[%clk 0:02:13]} 24. Rb1 {[%clk 0:02:10]}  Kh8 {[%clk 0:02:12]} 25. Qd5 {[%clk 0:02:08]}  b6 {[%clk 0:02:08]} 26. Rbd1 {[%clk 0:01:54]}  f4 {[%clk 0:02:06]} 27. Rd3 {[%clk 0:01:51]}  Qe5 {[%clk 0:02:00]} 28. Bg2 {[%clk 0:01:23]}  Rab8 {[%clk 0:01:48]} 29. g4 {[%clk 0:01:11]}  Qxe2 {[%clk 0:01:40]} 30. h5 {[%clk 0:00:58]}  Qxg4 {[%clk 0:01:32]} 31. hxg6 {[%clk 0:00:53]}  Qxg6 {[%clk 0:01:32]} 32. Kh1 {[%clk 0:00:40]}  Rf5 {[%clk 0:01:31]} 33. Qc6 {[%clk 0:00:31]}  Rh5+ {[%clk 0:01:10]} 34. Rh3 {[%clk 0:00:31]}  Rf8 {[%clk 0:01:06]} 35. Re1 {[%clk 0:00:28]}  f3 {[%clk 0:01:01]} 36. Bf1 {[%clk 0:00:27]}  Rxh3+ {[%clk 0:00:55]} 37. Bxh3 {[%clk 0:00:28]}  Qh5 {[%clk 0:00:56]} 38. Qd7 {[%clk 0:00:25]}  Bf6 {[%clk 0:00:48]} 39. Rg1 {[%clk 0:00:16]}  Rg8 {[%clk 0:00:41]} 40. Rxg8+ {[%clk 0:00:16]}  Kxg8 {[%clk 0:00:42]} 41. Qe6+ {[%clk 0:00:13]}  Kg7 {[%clk 0:00:38]} 42. Kg1 {[%clk 0:00:13]}  Qg5+ {[%clk 0:00:36]} 43. Qg4 {[%clk 0:00:01]}  Qxg4+ {[%clk 0:00:36]} 44. Bxg4 {[%clk 0:00:02]}  Bb2 {[%clk 0:00:36]} 45. Bxf3 {[%clk 0:00:02]}  Bxa3 {[%clk 0:00:35]} 46. Bd1 {[%clk 0:00:03]}  Kf6 {[%clk 0:00:35]} 47. Bxa4 {[%clk 0:00:04]}  Ke5 {[%clk 0:00:35]} 48. Bc2 {[%clk 0:00:04]}  Kd4 {[%clk 0:00:36]} 49. Bxh7 {[%clk 0:00:03]}  Kxc4 {[%clk 0:00:37]} 50. Be4 {[%clk 0:00:01]}  Kxb5 {[%clk 0:00:37]} 0-1


[Site "https://www.chess.com"]

[Event "Titled Tuesday Blitz March 22 Early 2022"]
[White "Aravindh, Chithambaram VR."]
[Black "Deac, Bogdan-Daniel"]
[WhiteFideId "5072786"]
[BlackFideId "1226380"]
[WhiteElo "2561"]
[BlackElo "2646"]
[Result "1/2-1/2"]
[Round "08"]
[TimeControl "180+1"]
[Date "2022.03.22"]
[WhiteClock "0:00:10"]
[BlackClock "0:00:06"]

1. b3 {[%clk 0:02:59]}  d5 {[%clk 0:02:54]} 2. Bb2 {[%clk 0:02:59]}  c5 {[%clk 0:02:55]} 3. e3 {[%clk 0:02:57]}  a6 {[%clk 0:02:55]} 4. Nf3 {[%clk 0:02:56]}  Nc6 {[%clk 0:02:55]} 5. d4 {[%clk 0:02:56]}  Bg4 {[%clk 0:02:52]} 6. dxc5 {[%clk 0:02:49]}  Qa5+ {[%clk 0:02:37]} 7. Nc3 {[%clk 0:02:37]}  Nf6 {[%clk 0:02:31]} 8. a3 {[%clk 0:02:36]}  Qxc5 {[%clk 0:02:30]} 9. Be2 {[%clk 0:02:34]}  Rd8 {[%clk 0:02:20]} 10. O-O {[%clk 0:02:31]}  g6 {[%clk 0:02:20]} 11. h3 {[%clk 0:02:20]}  Bf5 {[%clk 0:01:58]} 12. g4 {[%clk 0:02:09]}  Be6 {[%clk 0:01:54]} 13. Na4 {[%clk 0:02:00]}  Qd6 {[%clk 0:01:49]} 14. g5 {[%clk 0:01:54]}  Bxh3 {[%clk 0:01:49]} 15. gxf6 {[%clk 0:01:54]}  e5 {[%clk 0:01:49]} 16. c4 {[%clk 0:01:25]}  Qxf6 {[%clk 0:01:10]} 17. cxd5 {[%clk 0:01:25]}  Qf5 {[%clk 0:01:09]} 18. Kh1 {[%clk 0:01:03]}  e4 {[%clk 0:00:37]} 19. Nh2 {[%clk 0:00:49]}  Rxd5 {[%clk 0:00:24]} 20. Bg4 {[%clk 0:00:47]}  Qg5 {[%clk 0:00:14]} 21. Bxh3 {[%clk 0:00:36]}  Rxd1 {[%clk 0:00:13]} 22. Raxd1 {[%clk 0:00:37]}  Rg8 {[%clk 0:00:13]} 23. Bd7+ {[%clk 0:00:31]}  Ke7 {[%clk 0:00:14]} 24. Nb6 {[%clk 0:00:27]}  Bg7 {[%clk 0:00:10]} 25. Rd5 {[%clk 0:00:09]}  Qh4 {[%clk 0:00:06]} 26. Bxg7 {[%clk 0:00:08]}  Rxg7 {[%clk 0:00:06]} 27. Bxc6 {[%clk 0:00:07]}  bxc6 {[%clk 0:00:05]} 28. Nc8+ {[%clk 0:00:07]}  Ke8 {[%clk 0:00:04]} 29. Rd4 {[%clk 0:00:06]}  Qh3 {[%clk 0:00:04]} 30. Rfd1 {[%clk 0:00:06]}  Qxc8 {[%clk 0:00:03]} 31. Rxe4+ {[%clk 0:00:05]}  Kf8 {[%clk 0:00:03]} 32. Kg2 {[%clk 0:00:05]}  f5 {[%clk 0:00:03]} 33. Red4 {[%clk 0:00:06]}  Qc7 {[%clk 0:00:03]} 34. Rd8+ {[%clk 0:00:05]}  Ke7 {[%clk 0:00:03]} 35. Rh8 {[%clk 0:00:05]}  g5 {[%clk 0:00:03]} 36. Nf3 {[%clk 0:00:05]}  f4 {[%clk 0:00:03]} 37. e4 {[%clk 0:00:05]}  g4 {[%clk 0:00:03]} 38. Nd4 {[%clk 0:00:06]}  f3+ {[%clk 0:00:04]} 39. Kg1 {[%clk 0:00:06]}  Kf6 {[%clk 0:00:04]} 40. Rf8+ {[%clk 0:00:06]}  Rf7 {[%clk 0:00:05]} 41. Rg8 {[%clk 0:00:05]}  Rg7 {[%clk 0:00:04]} 42. Rf8+ {[%clk 0:00:05]}  Rf7 {[%clk 0:00:04]} 43. Rg8 {[%clk 0:00:06]}  Qf4 {[%clk 0:00:05]} 44. Nf5 {[%clk 0:00:05]}  h5 {[%clk 0:00:05]} 45. Nd6 {[%clk 0:00:05]}  Re7 {[%clk 0:00:05]} 46. Rf8+ {[%clk 0:00:05]}  Ke5 {[%clk 0:00:05]} 47. Nc4+ {[%clk 0:00:05]}  Kxe4 {[%clk 0:00:04]} 48. Nd6+ {[%clk 0:00:05]}  Ke5 {[%clk 0:00:04]} 49. Nc4+ {[%clk 0:00:05]}  Ke4 {[%clk 0:00:05]} 50. Rxf4+ {[%clk 0:00:05]}  Kxf4 {[%clk 0:00:05]} 51. Ne3 {[%clk 0:00:05]}  Re4 {[%clk 0:00:03]} 52. Rd6 {[%clk 0:00:05]}  g3 {[%clk 0:00:03]} 53. Rf6+ {[%clk 0:00:05]}  Kg5 {[%clk 0:00:03]} 54. Rxf3 {[%clk 0:00:06]}  h4 {[%clk 0:00:04]} 55. Rf5+ {[%clk 0:00:06]}  Kg6 {[%clk 0:00:04]} 56. Kg2 {[%clk 0:00:06]}  Rxe3 {[%clk 0:00:04]} 57. Rc5 {[%clk 0:00:05]}  Re2 {[%clk 0:00:04]} 58. Rxc6+ {[%clk 0:00:06]}  Kf5 {[%clk 0:00:05]} 59. Rc5+ {[%clk 0:00:06]}  Kg4 {[%clk 0:00:05]} 60. Rc4+ {[%clk 0:00:06]}  Kg5 {[%clk 0:00:05]} 61. Kh3 {[%clk 0:00:05]}  Rxf2 {[%clk 0:00:05]} 62. Rg4+ {[%clk 0:00:06]}  Kf5 {[%clk 0:00:05]} 63. Rxh4 {[%clk 0:00:06]}  g2 {[%clk 0:00:05]} 64. Kh2 {[%clk 0:00:06]}  Rb2 {[%clk 0:00:05]} 65. Rb4 {[%clk 0:00:06]}  a5 {[%clk 0:00:05]} 66. Rb5+ {[%clk 0:00:06]}  Kf4 {[%clk 0:00:05]} 67. Rxa5 {[%clk 0:00:06]}  Rxb3 {[%clk 0:00:05]} 68. Kxg2 {[%clk 0:00:06]}  Ke4 {[%clk 0:00:05]} 69. Kf2 {[%clk 0:00:07]}  Kd4 {[%clk 0:00:05]} 70. Ra4+ {[%clk 0:00:06]}  Kc5 {[%clk 0:00:05]} 71. Rb4 {[%clk 0:00:07]}  Rxa3 {[%clk 0:00:05]} 72. Rf4 {[%clk 0:00:07]}  Rb3 {[%clk 0:00:06]} 73. Rf3 {[%clk 0:00:07]}  Rb2+ {[%clk 0:00:06]} 74. Kg3 {[%clk 0:00:08]}  Kd4 {[%clk 0:00:06]} 75. Rf4+ {[%clk 0:00:08]}  Ke3 {[%clk 0:00:07]} 76. Rf3+ {[%clk 0:00:08]}  Ke4 {[%clk 0:00:07]} 77. Rf4+ {[%clk 0:00:09]}  Ke5 {[%clk 0:00:06]} 78. Rf2 {[%clk 0:00:08]}  Rb1 {[%clk 0:00:07]} 79. Kg2 {[%clk 0:00:09]}  Ke4 {[%clk 0:00:06]} 80. Rf1 {[%clk 0:00:09]}  Rb2+ {[%clk 0:00:06]} 81. Rf2 {[%clk 0:00:10]}  Rxf2+ {[%clk 0:00:06]} 82. Kxf2 {[%clk 0:00:10]} 1/2-1/2


[Site "https://www.chess.com"]